fUST/lending_fUST_20240802
["ID","MTS","AMOUNT","RATE_DAILY","PERIOD"]
[333857828,1722571859588,-781.45,0.00013972,2]
[333857829,1722571859598,-500.0,0.00013972,2]
[333857830,1722571859609,-500.0,0.00013972,2]
[333857831,1722571859619,-500.0,0.00013972,2]
[333857832,1722571859629,-500.0,0.00013972,2]
[333857833,1722571859639,-500.0,0.00013972,2]
[333857834,1722571859649,-500.0,0.00013972,2]
[333857835,1722571859661,-616.58976198,0.00013972,2]
[333857836,1722571859670,-726.78,0.00013972,2]
[333857837,1722571859679,-500.0,0.00013972,2]
[333857838,1722571859689,-500.0,0.00013972,2]
[333857839,1722571859699,-826.47,0.00013972,2]
[333857840,1722571859708,-500.0,0.00013972,2]
[333857841,1722571859718,-597.76,0.00013972,2]
[333857842,1722571859727,-154.78433696,0.00014,2]
[333857843,1722571859737,-150.112233,0.00014,2]
[333857844,1722571859748,-150.112233,0.00014,2]
[333857845,1722571859758,-150.112233,0.00014,2]
[333857846,1722571859768,-153.0,0.0001402,2]
[333857847,1722571859778,-150.112233,0.000141,2]
[333857848,1722571859787,-150.112233,0.000141,2]
[333857849,1722571859799,-150.112233,0.000141,2]
[333857850,1722571859808,-150.112233,0.000141,2]
[333857851,1722571859818,-153.0,0.00014196,2]
[333857852,1722571859829,-294.1746601,0.00014196,2]
[333857853,1722571859838,-294.1746601,0.00014196,2]
[333857854,1722571859847,-206.9081725,0.00014196,2]
[333857855,1722571859856,-150.112233,0.000142,2]
[333857856,1722571859865,-150.112233,0.000142,2]
[333857857,1722571859874,-4856.57046715,0.00014236,2]
[333857858,1722571859883,-505.70576073,0.00014246,2]
[333857859,1722571859892,-500.0,0.00014246,2]
[333857860,1722571859902,-500.0,0.00014246,2]
[333857861,1722571859911,-490.88834863,0.00014246,2]
[333857862,1722571859920,-500.0,0.00014246,2]
[333857863,1722571859930,-500.0,0.00014246,2]
[333857864,1722571859939,-500.0,0.00014246,2]
[333857865,1722571859948,-514.84918606,0.00014246,2]
[333857866,1722571859958,-500.0,0.00014246,2]
[333857867,1722571859967,-500.0,0.00014246,2]
[333857868,1722571859976,-500.0,0.00014246,2]
[333857869,1722571859985,-474.60862034,0.00014246,2]
[333857870,1722571859994,-500.0,0.00014246,2]
[333857871,1722571860004,-500.0,0.00014246,2]
[333857872,1722571860013,-502.19294622,0.00014246,2]
[333857873,1722571860023,-552.80140385,0.00014246,2]
[333857874,1722571860032,-500.0,0.00014246,2]
[333857875,1722571860041,-500.0,0.00014246,2]
[333857876,1722571860053,-500.0,0.00014246,2]
[333857877,1722571860063,-500.0,0.00014246,2]
[333857878,1722571860073,-500.0,0.00014246,2]
[333857879,1722571860083,-500.0,0.00014246,2]
[333857880,1722571860092,-500.0,0.00014246,2]
[333857881,1722571860102,-317.35456873,0.00014246,2]
[333857882,1722571860111,-500.0,0.00014246,2]
[333857883,1722571860121,-486.03343155,0.00014246,2]
[333857884,1722571860130,-771.73,0.00014246,2]
[333857885,1722571860139,-500.0,0.00014246,2]
[333857886,1722571860148,-500.0,0.00014246,2]
[333857887,1722571860158,-500.0,0.00014246,2]
[333857888,1722571860167,-500.0,0.00014246,2]
[333857889,1722571860176,-500.0,0.00014246,2]
[333857890,1722571860185,-500.0,0.00014246,2]
[333857891,1722571860194,-507.5184956,0.00014246,2]
[333857892,1722571860203,-500.0,0.00014246,2]
[333857893,1722571860213,-500.0,0.00014246,2]
[333857894,1722571860223,-525.72705259,0.00014246,2]
[333857895,1722571860232,-500.0,0.00014246,2]
[333857896,1722571860242,-500.0,0.00014246,2]
[333857897,1722571860251,-500.0,0.00014246,2]
[333857898,1722571860261,-500.0,0.00014246,2]
[333857899,1722571860271,-500.0,0.00014246,2]
[333857900,1722571860280,-500.0,0.00014246,2]
[333857901,1722571860289,-525.28852439,0.00014246,2]
[333857902,1722571860301,-517.77403837,0.00014246,2]
[333857903,1722571860311,-500.0,0.00014246,2]
[333857904,1722571860320,-205.64012201,0.00014246,2]
[333857905,1722571860329,-500.0,0.00014246,2]
[333857906,1722571860339,-570.23740061,0.00014246,2]
[333857907,1722571860349,-500.0,0.00014246,2]
[333857908,1722571860362,-500.0,0.00014246,2]
[333857909,1722571860372,-500.0,0.00014246,2]
[333857910,1722571860381,-503.42648824,0.00014246,2]
[333857911,1722571860391,-500.0,0.00014246,2]
[333857912,1722571860401,-500.0,0.00014246,2]
[333857913,1722571860411,-792.09,0.00014246,2]
[333857914,1722571860421,-500.0,0.00014246,2]
[333857915,1722571860433,-500.0,0.00014246,2]
[333857916,1722571860443,-300.05643856,0.00014246,2]
[333857917,1722571860452,-500.0,0.00014246,2]
[333857918,1722571860462,-500.0,0.00014246,2]
[333857919,1722571860471,-360.90468721,0.00014246,2]
[333857920,1722571860480,-521.98,0.00014246,2]
[333857921,1722571860490,-565.85,0.00014246,2]
[333857922,1722571860500,-509.30265708,0.00014246,2]
[333857923,1722571860509,-500.0,0.00014246,2]
[333857924,1722571860519,-500.0,0.00014246,2]
[333857925,1722571860528,-500.0,0.00014246,2]
[333857926,1722571860537,-500.0,0.00014246,2]
[333857927,1722571860550,-500.0,0.00014246,2]
[333857928,1722571860559,-500.0,0.00014246,2]
[333857929,1722571860569,-500.0,0.00014246,2]
[333857930,1722571860579,-500.0,0.00014246,2]
[333857931,1722571860588,-500.0,0.00014246,2]
[333857932,1722571860598,-500.0,0.00014246,2]
[333857933,1722571860607,-500.0,0.00014246,2]
[333857934,1722571860617,-500.0,0.00014246,2]
[333857935,1722571860628,-500.0,0.00014246,2]
[333857936,1722571860639,-558.3,0.00014246,2]
[333857937,1722571860649,-726.2,0.00014246,2]
[333857938,1722571860659,-521.07971276,0.00014246,2]
[333857939,1722571860669,-525.79883313,0.00014246,2]
[333857940,1722571860680,-598.92,0.00014246,2]
[333857941,1722571860689,-670.93,0.00014246,2]
[333857942,1722571860702,-500.0,0.00014246,2]
[333857943,1722571860711,-500.0,0.00014246,2]
[333857944,1722571860721,-500.0,0.00014246,2]
[333857945,1722571860730,-500.0,0.00014246,2]
[333857946,1722571860739,-500.0,0.00014246,2]
[333857947,1722571860750,-202.80058091,0.00014246,2]
[333857948,1722571860760,-511.62053301,0.00014246,2]
[333857949,1722571860770,-500.0,0.00014246,2]
[333857950,1722571860780,-500.0,0.00014246,2]
[333857951,1722571860790,-500.0,0.00014246,2]
[333857952,1722571860865,-713.33,0.00014246,2]
[333857953,1722571860875,-500.0,0.00014246,2]
[333857954,1722571860885,-506.04521931,0.00014246,2]
[333857955,1722571860895,-500.0,0.00014246,2]
[333857956,1722571860904,-500.3,0.00014246,2]
[333857957,1722571860913,-503.52167179,0.00014246,2]
[333857958,1722571860923,-500.0,0.00014246,2]
[333857959,1722571860932,-500.0,0.00014246,2]
[333857960,1722571860942,-500.0,0.00014246,2]
[333857961,1722571860952,-500.0,0.00014246,2]
[333857962,1722571860961,-500.0,0.00014246,2]
[333857963,1722571860971,-500.0,0.00014246,2]
[333857964,1722571860980,-500.0,0.00014246,2]
[333857965,1722571860989,-500.0,0.00014246,2]
[333857966,1722571860999,-500.0,0.00014246,2]
[333857967,1722571861008,-500.0,0.00014246,2]
[333857968,1722571861017,-500.0,0.00014246,2]
[333857969,1722571861028,-1405.39,0.00014246,2]
[333857970,1722571861038,-500.0,0.00014246,2]
[333857971,1722571861050,-656.72,0.00014246,2]
[333857972,1722571861060,-500.0,0.00014246,2]
[333857973,1722571861070,-500.0,0.00014246,2]
[333857974,1722571861080,-500.0,0.00014246,2]
[333857975,1722571861091,-500.0,0.00014246,2]
[333857976,1722571861100,-500.0,0.00014246,2]
[333857977,1722571861112,-3018.83,0.00014246,2]
[333857978,1722571861121,-500.0,0.00014246,2]
[333857979,1722571861131,-500.0,0.00014246,2]
[333857980,1722571861140,-500.0,0.00014246,2]
[333857981,1722571861149,-500.0,0.00014246,2]
[333857982,1722571861159,-500.0,0.00014246,2]
[333857983,1722571861168,-715.13,0.00014246,2]
[333857984,1722571861177,-705.78,0.00014246,2]
[333857985,1722571861186,-500.0,0.00014246,2]
[333857986,1722571861196,-500.0,0.00014246,2]
[333857987,1722571861205,-707.27,0.00014246,2]
[333857988,1722571861214,-500.0,0.00014246,2]
[333857989,1722571861224,-500.0,0.00014246,2]
[333857990,1722571861234,-500.0,0.00014246,2]
[333857991,1722571861243,-500.0,0.00014246,2]
[333857992,1722571861252,-500.0,0.00014246,2]
[333857993,1722571861262,-907.07,0.00014246,2]
[333857994,1722571861271,-500.0,0.00014246,2]
[333857995,1722571861281,-210.21520395,0.00014246,2]
[333857996,1722571861290,-521.73867589,0.00014246,2]
[333857997,1722571861303,-500.0,0.00014246,2]
[333857998,1722571861312,-500.0,0.00014246,2]
[333857999,1722571861322,-619.89,0.00014246,2]
[333858000,1722571861331,-500.0,0.00014246,2]
[333858001,1722571861340,-500.0,0.00014246,2]
[333858002,1722571861350,-500.0,0.00014246,2]
[333858003,1722571861363,-500.0,0.00014246,2]
[333858004,1722571861374,-500.0,0.00014246,2]
[333858005,1722571861383,-500.0,0.00014246,2]
[333858006,1722571861394,-999.49,0.00014246,2]
[333858007,1722571861403,-500.0,0.00014246,2]
[333858008,1722571861413,-561.04,0.00014246,2]
[333858009,1722571861422,-500.0,0.00014246,2]
[333858010,1722571861431,-1303.6,0.00014246,2]
[333858011,1722571861442,-500.0,0.00014246,2]
[333858012,1722571861452,-500.0,0.00014246,2]
[333858013,1722571861462,-500.0,0.00014246,2]
[333858014,1722571861471,-500.0,0.00014246,2]
[333858015,1722571861480,-500.0,0.00014246,2]
[333858016,1722571861490,-500.0,0.00014246,2]
[333858017,1722571861502,-500.0,0.00014246,2]
[333858018,1722571861511,-500.0,0.00014246,2]
[333858019,1722571861521,-1440.84,0.00014246,2]
[333858020,1722571861531,-500.0,0.00014246,2]
[333858021,1722571861541,-507.56062931,0.00014246,2]
[333858022,1722571861553,-500.0,0.00014246,2]
[333858023,1722571861562,-232.66680472,0.00014246,2]
[333858024,1722571861571,-1302.08,0.00014246,2]
[333858025,1722571861581,-500.0,0.00014246,2]
[333858026,1722571861590,-500.0,0.00014246,2]
[333858027,1722571861599,-500.0,0.00014246,2]
[333858028,1722571861609,-500.0,0.00014246,2]
[333858029,1722571861618,-500.0,0.00014246,2]
[333858030,1722571861627,-500.0,0.00014246,2]
[333858031,1722571861636,-1667.14,0.00014246,2]
[333858032,1722571861645,-500.0,0.00014246,2]
[333858033,1722571861654,-500.0,0.00014246,2]
[333858034,1722571861663,-5988.43,0.00014246,2]
[333858035,1722571861673,-853.96,0.00014246,2]
[333858036,1722571861683,-500.0,0.00014246,2]
[333858037,1722571861693,-500.0,0.00014246,2]
[333858038,1722571861702,-500.0,0.00014246,2]
[333858039,1722571861711,-506.02981527,0.00014246,2]
[333858040,1722571861720,-500.0,0.00014246,2]
[333858041,1722571861730,-2471.7,0.00014246,2]
[333858042,1722571861739,-500.0,0.00014246,2]
[333858043,1722571861748,-500.0,0.00014246,2]
[333858044,1722571861758,-500.0,0.00014246,2]
[333858045,1722571861767,-500.0,0.00014246,2]
[333858046,1722571861776,-945.33,0.00014246,2]
[333858047,1722571861786,-500.0,0.00014246,2]
[333858048,1722571861797,-500.0,0.00014246,2]
[333858049,1722571861806,-500.0,0.00014246,2]
[333858050,1722571861815,-500.0,0.00014246,2]
[333858051,1722571861824,-500.0,0.00014246,2]
[333858052,1722571861833,-500.0,0.00014246,2]
[333858053,1722571861843,-500.0,0.00014246,2]
[333858054,1722571861852,-205.86282353,0.00014246,2]
[333858055,1722571862122,-294.13717647,0.00014246,2]
[333858056,1722571862131,-622.96,0.00014246,2]
[333858057,1722571862141,-500.0,0.00014246,2]
[333858058,1722571862150,-500.0,0.00014246,2]
[333858059,1722571862160,-1088.61,0.00014246,2]
[333858060,1722571862170,-500.0,0.00014246,2]
[333858061,1722571862179,-500.0,0.00014246,2]
[333858062,1722571862189,-704.53,0.00014246,2]
[333858063,1722571862198,-4965.83,0.00014246,2]
[333858064,1722571862208,-500.0,0.00014246,2]
[333858065,1722571862219,-589.52,0.00014246,2]
[333858066,1722571862231,-632.06,0.00014246,2]
[333858067,1722571862240,-500.0,0.00014246,2]
[333858068,1722571862250,-358.54168481,0.00014246,2]
[333858069,1722571862261,-883.9,0.00014246,2]
[333858070,1722571862271,-500.0,0.00014246,2]
[333858071,1722571862281,-1328.6,0.00014246,2]
[333858072,1722571862291,-3460.85,0.00014246,2]
[333858073,1722571862304,-438.80008264,0.00014246,2]
[333858074,1722571862313,-500.0,0.00014246,2]
[333858075,1722571862322,-500.0,0.00014246,2]
[333858076,1722571862332,-588.77,0.00014246,2]
[333858077,1722571862341,-500.0,0.00014246,2]
[333858078,1722571862352,-500.0,0.00014246,2]
[333858079,1722571862367,-500.0,0.00014246,2]
[333858080,1722571862377,-500.0,0.00014246,2]
[333858081,1722571862387,-500.0,0.00014246,2]
[333858082,1722571862399,-500.0,0.00014246,2]
[333858083,1722571862409,-583.6,0.00014246,2]
[333858084,1722571862418,-909.86,0.00014246,2]
[333858085,1722571862429,-500.0,0.00014246,2]
[333858086,1722571862439,-500.0,0.00014246,2]
[333858087,1722571862449,-3027.67,0.00014246,2]
[333858088,1722571862459,-500.0,0.00014246,2]
[333858089,1722571862469,-500.0,0.00014246,2]
[333858090,1722571862478,-500.0,0.00014246,2]
[333858091,1722571862489,-500.0,0.00014246,2]
[333858092,1722571862500,-508.92653166,0.00014246,2]
[333858093,1722571862510,-694.78,0.00014246,2]
[333858094,1722571862519,-500.0,0.00014246,2]
[333858095,1722571862529,-285.4376544,0.00014246,2]
[333858096,1722571862539,-500.0,0.00014246,2]
[333858097,1722571862550,-906.83,0.00014246,2]
[333858098,1722571862559,-977.38,0.00014246,2]
[333858099,1722571862570,-500.0,0.00014246,2]
[333858100,1722571862580,-500.0,0.00014246,2]
[333858101,1722571862590,-500.0,0.00014246,2]
[333858102,1722571862599,-760.21,0.00014246,2]
[333858103,1722571862609,-889.88,0.00014246,2]
[333858104,1722571862618,-193.16055991,0.00014246,2]
[333858105,1722571862627,-1975.35,0.00014246,2]
[333858106,1722571862636,-500.0,0.00014246,2]
[333858107,1722571862646,-608.11258277,0.00014246,2]
[333858108,1722571862656,-500.0,0.00014246,2]
[333858109,1722571862665,-500.0,0.00014246,2]
[333858110,1722571862674,-557.89,0.00014246,2]
[333858111,1722571862683,-837.75,0.00014246,2]
[333858112,1722571862692,-500.0,0.00014246,2]
[333858113,1722571862701,-711.79,0.00014246,2]
[333858114,1722571862711,-500.0,0.00014246,2]
[333858115,1722571862721,-500.0,0.00014246,2]
[333858116,1722571862730,-500.0,0.00014246,2]
[333858117,1722571862740,-653.29,0.00014246,2]
[333858118,1722571862750,-779.13,0.00014246,2]
[333858119,1722571862759,-547.05210033,0.00014246,2]
[333858120,1722571862769,-500.0,0.00014246,2]
[333858121,1722571862779,-500.0,0.00014246,2]
[333858122,1722571862788,-500.0,0.00014246,2]
[333858123,1722571862800,-500.0,0.00014246,2]
[333858124,1722571862809,-781.45,0.00014246,2]
[333858125,1722571862819,-505.82684069,0.00014246,2]
[333858126,1722571862828,-500.0,0.00014246,2]
[333858127,1722571862837,-500.0,0.00014246,2]
[333858128,1722571862846,-500.0,0.00014246,2]
[333858129,1722571862855,-500.0,0.00014246,2]
[333858130,1722571862865,-500.0,0.00014246,2]
[333858131,1722571862874,-726.78,0.00014246,2]
[333858132,1722571862883,-500.0,0.00014246,2]
[333858133,1722571862893,-500.0,0.00014246,2]
[333858134,1722571862902,-826.47,0.00014246,2]
[333858135,1722571862974,-500.0,0.00014246,2]
[333858136,1722571862985,-597.76,0.00014246,2]
[333858137,1722571862994,-442.175944,0.00014247,2]
[333858138,1722571863003,-307.824056,0.00014247,2]
[333858139,1722571863013,-200.21595204,0.00014273,2]
[333858140,1722571863023,-150.112233,0.000143,2]
[333858141,1722571863032,-150.112233,0.000143,2]
[333858142,1722571863042,-150.112233,0.000144,2]
[333858143,1722571863055,-150.112233,0.000145,2]
[333858144,1722571863065,-500.0,0.0001452,2]
[333858145,1722571863074,-500.0,0.0001452,2]
[333858146,1722571863083,-520.83712426,0.0001452,2]
[333858147,1722571863093,-500.0,0.0001452,2]
[333858148,1722571863103,-500.0,0.0001452,2]
[333858149,1722571863113,-500.0,0.0001452,2]
[333858150,1722571863123,-500.0,0.0001452,2]
[333858151,1722571863132,-328.0,0.0001452,2]
[333858152,1722571863142,-500.0,0.0001452,2]
[333858153,1722571863152,-500.0,0.0001452,2]
[333858154,1722571863161,-509.58564425,0.0001452,2]
[333858155,1722571863171,-500.0,0.0001452,2]
[333858156,1722571863181,-500.0,0.0001452,2]
[333858157,1722571863191,-500.0,0.0001452,2]
[333858158,1722571863201,-500.0,0.0001452,2]
[333858159,1722571863211,-502.65576092,0.0001452,2]
[333858160,1722571863222,-500.0,0.0001452,2]
[333858161,1722571863232,-243.4873328,0.0001452,2]
[333858162,1722571863243,-771.73,0.0001452,2]
[333858163,1722571863252,-500.0,0.0001452,2]
[333858164,1722571863262,-500.0,0.0001452,2]
[333858165,1722571863271,-500.0,0.0001452,2]
[333858166,1722571863281,-500.0,0.0001452,2]
[333858167,1722571863291,-500.0,0.0001452,2]
[333858168,1722571863304,-500.0,0.0001452,2]
[333858169,1722571863314,-500.0,0.0001452,2]
[333858170,1722571863323,-225.77721032,0.0001452,2]
[333858171,1722571863333,-513.12981873,0.0001452,2]
[333858172,1722571863343,-502.24296747,0.0001452,2]
[333858173,1722571863356,-500.0,0.0001452,2]
[333858174,1722571863366,-500.0,0.0001452,2]
[333858175,1722571863376,-610.76990781,0.0001452,2]
[333858176,1722571863386,-500.0,0.0001452,2]
[333858177,1722571863397,-500.0,0.0001452,2]
[333858178,1722571863408,-545.88592915,0.0001452,2]
[333858179,1722571863418,-500.0,0.0001452,2]
[333858180,1722571863427,-500.0,0.0001452,2]
[333858181,1722571863439,-500.0,0.0001452,2]
[333858182,1722571863449,-500.0,0.0001452,2]
[333858183,1722571863459,-500.0,0.0001452,2]
[333858184,1722571863468,-792.09,0.0001452,2]
[333858185,1722571863478,-500.0,0.0001452,2]
[333858186,1722571863487,-500.0,0.0001452,2]
[333858187,1722571863497,-500.0,0.0001452,2]
[333858188,1722571863506,-500.0,0.0001452,2]
[333858189,1722571863516,-521.98,0.0001452,2]
[333858190,1722571863526,-565.85,0.0001452,2]
[333858191,1722571863536,-500.0,0.0001452,2]
[333858192,1722571863548,-500.0,0.0001452,2]
[333858193,1722571863557,-500.0,0.0001452,2]
[333858194,1722571863567,-456.88261359,0.0001452,2]
[333858195,1722571863576,-500.0,0.0001452,2]
[333858196,1722571863586,-500.0,0.0001452,2]
[333858197,1722571863595,-500.0,0.0001452,2]
[333858198,1722571863605,-500.0,0.0001452,2]
[333858199,1722571863615,-306.4692089,0.0001452,2]
[333858200,1722571863624,-500.0,0.0001452,2]
[333858201,1722571863635,-500.0,0.0001452,2]
[333858202,1722571863644,-500.0,0.0001452,2]
[333858203,1722571863654,-500.0,0.0001452,2]
[333858204,1722571863663,-558.3,0.0001452,2]
[333858205,1722571863673,-726.2,0.0001452,2]
[333858206,1722571863682,-598.92,0.0001452,2]
[333858207,1722571863692,-670.93,0.0001452,2]
[333858208,1722571863701,-500.0,0.0001452,2]
[333858209,1722571863711,-500.0,0.0001452,2]
[333858210,1722571863720,-500.0,0.0001452,2]
[333858211,1722571863729,-500.0,0.0001452,2]
[333858212,1722571863739,-500.0,0.0001452,2]
[333858213,1722571863748,-500.0,0.0001452,2]
[333858214,1722571863759,-500.0,0.0001452,2]
[333858215,1722571863768,-500.0,0.0001452,2]
[333858216,1722571863779,-713.33,0.0001452,2]
[333858217,1722571863789,-500.0,0.0001452,2]
[333858218,1722571863802,-500.0,0.0001452,2]
[333858219,1722571863813,-500.3,0.0001452,2]
[333858220,1722571863824,-500.0,0.0001452,2]
[333858221,1722571863835,-500.0,0.0001452,2]
[333858222,1722571863845,-500.0,0.0001452,2]
[333858223,1722571863854,-500.0,0.0001452,2]
[333858224,1722571863864,-500.0,0.0001452,2]
[333858225,1722571863876,-500.0,0.0001452,2]
[333858226,1722571863886,-500.0,0.0001452,2]
[333858227,1722571863896,-500.0,0.0001452,2]
[333858228,1722571863907,-500.0,0.0001452,2]
[333858229,1722571863916,-500.0,0.0001452,2]
[333858230,1722571863925,-500.0,0.0001452,2]
[333858231,1722571863935,-1405.39,0.0001452,2]
[333858232,1722571863945,-500.0,0.0001452,2]
[333858233,1722571863954,-656.72,0.0001452,2]
[333858234,1722571864021,-500.0,0.0001452,2]
[333858235,1722571864031,-500.0,0.0001452,2]
[333858236,1722571864040,-500.0,0.0001452,2]
[333858237,1722571864051,-500.0,0.0001452,2]
[333858238,1722571864061,-500.0,0.0001452,2]
[333858239,1722571864070,-3018.83,0.0001452,2]
[333858240,1722571864079,-500.0,0.0001452,2]
[333858241,1722571864089,-500.0,0.0001452,2]
[333858242,1722571864099,-500.0,0.0001452,2]
[333858243,1722571864108,-500.0,0.0001452,2]
[333858244,1722571864118,-500.0,0.0001452,2]
[333858245,1722571864128,-715.13,0.0001452,2]
[333858246,1722571864137,-705.78,0.0001452,2]
[333858247,1722571864146,-500.0,0.0001452,2]
[333858248,1722571864156,-500.0,0.0001452,2]
[333858249,1722571864166,-707.27,0.0001452,2]
[333858250,1722571864175,-512.91291601,0.0001452,2]
[333858251,1722571864185,-500.0,0.0001452,2]
[333858252,1722571864194,-446.93299994,0.0001452,2]
[333858253,1722571864204,-500.0,0.0001452,2]
[333858254,1722571864214,-500.0,0.0001452,2]
[333858255,1722571864224,-907.07,0.0001452,2]
[333858256,1722571864234,-500.0,0.0001452,2]
[333858257,1722571864244,-500.0,0.0001452,2]
[333858258,1722571864254,-500.0,0.0001452,2]
[333858259,1722571864264,-619.89,0.0001452,2]
[333858260,1722571864274,-529.45360702,0.0001452,2]
[333858261,1722571864284,-500.0,0.0001452,2]
[333858262,1722571864297,-500.0,0.0001452,2]
[333858263,1722571864307,-500.0,0.0001452,2]
[333858264,1722571864316,-500.0,0.0001452,2]
[333858265,1722571864326,-500.0,0.0001452,2]
[333858266,1722571864336,-999.49,0.0001452,2]
[333858267,1722571864345,-500.0,0.0001452,2]
[333858268,1722571864356,-561.04,0.0001452,2]
[333858269,1722571864370,-500.0,0.0001452,2]
[333858270,1722571864380,-1303.6,0.0001452,2]
[333858271,1722571864390,-500.0,0.0001452,2]
[333858272,1722571864401,-500.0,0.0001452,2]
[333858273,1722571864411,-500.0,0.0001452,2]
[333858274,1722571864420,-502.4131129,0.0001452,2]
[333858275,1722571864432,-500.0,0.0001452,2]
[333858276,1722571864443,-500.0,0.0001452,2]
[333858277,1722571864454,-500.0,0.0001452,2]
[333858278,1722571864465,-500.0,0.0001452,2]
[333858279,1722571864475,-1440.84,0.0001452,2]
[333858280,1722571864492,-500.0,0.0001452,2]
[333858281,1722571864509,-500.0,0.0001452,2]
[333858282,1722571864528,-1302.08,0.0001452,2]
[333858283,1722571864549,-500.0,0.0001452,2]
[333858284,1722571864569,-500.0,0.0001452,2]
[333858285,1722571864588,-506.47633937,0.0001452,2]
[333858286,1722571864605,-500.0,0.0001452,2]
[333858287,1722571864619,-500.0,0.0001452,2]
[333858288,1722571864637,-500.0,0.0001452,2]
[333858289,1722571864658,-1667.14,0.0001452,2]
[333858290,1722571864673,-500.0,0.0001452,2]
[333858291,1722571864688,-500.0,0.0001452,2]
[333858292,1722571864704,-5988.43,0.0001452,2]
[333858293,1722571864722,-853.96,0.0001452,2]
[333858294,1722571864736,-500.0,0.0001452,2]
[333858295,1722571864751,-500.0,0.0001452,2]
[333858296,1722571864766,-500.0,0.0001452,2]
[333858297,1722571864780,-500.0,0.0001452,2]
[333858298,1722571864797,-2471.7,0.0001452,2]
[333858299,1722571864811,-500.0,0.0001452,2]
[333858300,1722571864826,-500.0,0.0001452,2]
[333858301,1722571864840,-500.0,0.0001452,2]
[333858302,1722571864855,-256.98818527,0.0001452,2]
[333858303,1722571864869,-945.33,0.0001452,2]
[333858304,1722571864883,-500.0,0.0001452,2]
[333858305,1722571864897,-500.0,0.0001452,2]
[333858306,1722571864913,-500.0,0.0001452,2]
[333858307,1722571864928,-500.0,0.0001452,2]
[333858308,1722571864942,-500.0,0.0001452,2]
[333858309,1722571864958,-500.0,0.0001452,2]
[333858310,1722571864975,-500.0,0.0001452,2]
[333858311,1722571864990,-622.96,0.0001452,2]
[333858312,1722571865007,-500.0,0.0001452,2]
[333858313,1722571865019,-500.0,0.0001452,2]
[333858314,1722571865029,-506.3132492,0.0001452,2]
[333858315,1722571865039,-1088.61,0.0001452,2]
[333858316,1722571865048,-500.0,0.0001452,2]
[333858317,1722571865058,-500.0,0.0001452,2]
[333858318,1722571865067,-704.53,0.0001452,2]
[333858319,1722571865076,-4965.83,0.0001452,2]
[333858320,1722571865085,-500.0,0.0001452,2]
[333858321,1722571865095,-589.52,0.0001452,2]
[333858322,1722571865104,-632.06,0.0001452,2]
[333858323,1722571865114,-500.0,0.0001452,2]
[333858324,1722571865123,-883.9,0.0001452,2]
[333858325,1722571865261,-500.0,0.0001452,2]
[333858326,1722571865280,-1328.6,0.0001452,2]
[333858327,1722571865289,-3460.85,0.0001452,2]